bitfinex-derivatives/quotes_ETHF0:USTF0_20251003
["timestamp","ask_amount","ask_price","bid_price","bid_amount"]
[1759513465158,1.1864,4503.1,4503.0,0.37594772]
[1759513467153,1.1864,4503.1,4503.0,0.77539772]
[1759513467361,1.0898,4503.8,4503.2,0.39943]
[1759513467553,1.09262168,4504.3,4503.3,0.99857]
[1759513467753,0.00282168,4504.3,4504.0,0.39935]
[1759513467957,0.00282168,4504.3,4504.1,1.3569]
[1759513468352,1.09262168,4504.3,4504.2,0.226]
[1759513468557,0.00282168,4504.3,4504.2,1.3569]
[1759513468758,1.09262168,4504.3,4504.2,1.3569]
[1759513469154,1.09262168,4504.3,4503.7,3.2078]
[1759513469458,1.49195168,4504.3,4504.2,0.226]
[1759513469653,0.39938,4503.8,4503.2,3.60723]
[1759513469852,1.0898,4503.9,4503.3,0.226]
[1759513470055,1.0898,4503.9,4503.3,0.62542]
[1759513470255,0.39939,4503.7,4503.3,0.226]
[1759513470559,0.39939,4503.7,4503.2,3.2078]
[1759513470560,1.5324,4503.5,4503.4,0.226]
[1759513470755,3.2078,4504.0,4503.7,1.1309]
[1759513470955,1.0898,4503.9,4503.2,1.1309]
[1759513471162,3.6504,4504.0,4503.3,0.226]
[1759513471163,1.0898,4503.4,4503.3,0.226]
[1759513471763,3.6504,4504.0,4503.3,1.3569]
[1759513471764,1.0898,4503.7,4503.3,1.3569]
[1759513471965,1.19,4503.6,4503.3,0.226]
[1759513472265,1.19,4503.9,4503.7,1.50029]
[1759513472466,1.19,4503.9,4503.8,0.226]
[1759513472661,1.19,4503.9,4503.7,0.39939]
[1759513472863,1.19,4503.9,4503.8,0.226]
[1759513473166,3.2078,4504.0,4503.9,1.1009]
[1759513473761,4.3978,4504.0,4503.8,0.226]
[1759513473962,0.39938,4503.9,4503.0,1.73377762]
[1759513474168,1.19,4503.1,4503.0,0.14934134]
[1759513474363,1.19,4503.1,4502.4,1.58443628]
[1759513474364,0.4522,4502.5,4502.4,1.58443628]
[1759513474564,0.4522,4502.5,4502.0,1.98291455]
[1759513474565,1.19,4502.3,4502.0,1.58679551]
[1759513474862,0.4522,4502.5,4502.1,0.39953]
[1759513475068,1.19,4502.4,4502.1,0.39953]
[1759513475365,1.19,4502.4,4502.2,0.62552]
[1759513475556,1.19,4502.5,4502.2,0.226]
[1759513475758,1.19,4502.4,4502.3,0.39951]
[1759513476266,0.4522,4502.5,4502.2,0.226]
[1759513476465,1.19,4502.4,4502.3,0.39951]
[1759513476668,1.19,4502.4,4502.2,0.226]
[1759513476856,0.4522,4502.5,4502.2,0.62552]
[1759513477056,1.19,4502.4,4502.3,0.6255]
[1759513478270,1.19,4502.4,4502.3,0.226]
[1759513479268,1.19,4502.4,4502.3,0.39951]
[1759513479466,1.19,4502.4,4502.3,0.62551]
[1759513479873,3.2078,4502.9,4502.8,0.39947]
[1759513480068,4.3978,4502.9,4502.8,0.62547]
[1759513481067,4.3978,4502.9,4502.8,0.226]
[1759513482278,0.4522,4502.5,4502.1,1.73399937]
[1759513482483,1.19,4502.4,4502.1,0.54908309]
[1759513482781,1.19,4502.4,4502.2,0.62552]
[1759513482977,1.19,4502.4,4502.2,0.226]
[1759513483183,3.2078,4502.9,4502.3,1.1009]
[1759513483383,3.2078,4502.9,4502.7,0.39947]
[1759513483686,4.3978,4502.9,4502.8,0.226]
[1759513484579,1.19,4502.9,4502.8,0.226]
[1759513484888,1.19,4503.4,4503.3,0.39942]
[1759513485184,0.4522,4504.0,4503.3,0.39942]
[1759513485185,1.6422,4504.0,4503.8,0.39938]
[1759513485381,1.6422,4504.0,4503.9,0.226]
[1759513485583,0.4522,4504.0,4503.4,1.58443628]
[1759513485781,0.4522,4504.0,4503.7,0.39938]
[1759513486084,0.4522,4504.0,4503.5,4.9341]
[1759513486283,0.85156,4504.0,4503.5,4.9341]
[1759513486580,0.85156,4504.0,4503.6,0.39939]
[1759513486786,1.19,4503.9,4503.5,6.11913628]
[1759513487082,1.19,4503.9,4503.8,0.39938]
[1759513487283,0.40216168,4504.3,4503.5,5.01823628]
[1759513487284,1.19,4504.2,4503.9,0.39937]
[1759513487582,0.00282168,4504.3,4504.0,0.226]
[1759513487791,1.19,4504.2,4504.0,3.83316]
[1759513488081,1.19282168,4504.3,4504.2,0.39934]
[1759513488487,0.4522,4506.0,4504.2,0.39934]
[1759513488783,10.13499622,4506.8,4504.2,0.39934]
[1759513488784,0.39889,4509.3,4507.6,1.1009]
[1759513488987,0.39889,4509.3,4507.5,0.4637]
[1759513488988,0.39891,4509.2,4508.0,1.96361]
[1759513489187,2.9247945,4509.5,4507.5,0.4637]
[1759513489380,0.99712,4509.9,4507.6,1.1519]
[1759513489587,0.39897,4508.4,4507.6,1.1009]
[1759513489787,0.399,4508.1,4507.5,1.89938255]
[1759513489988,0.39904,4507.7,4507.5,0.00261441]
[1759513490384,7.81968287,4507.6,4507.5,0.00261441]
[1759513490688,8.29148287,4507.6,4507.5,1.441e-05]
[1759513492489,8.29148287,4507.6,4505.9,1.1009]
[1759513492490,0.39914,4506.6,4505.9,1.1009]
[1759513492690,3.60692,4506.8,4506.2,1.50006]
[1759513492886,0.39912,4506.7,4506.1,1.1009]
[1759513493093,3.2078,4506.8,4506.2,0.39916]
[1759513493387,3.60692,4506.8,4506.3,0.39915]
[1759513493588,3.60692,4506.8,4506.4,1.1009]
[1759513493788,0.39913,4506.7,4506.5,1.3269]
[1759513493988,0.39913,4506.7,4506.5,0.226]
[1759513494185,0.86833,4506.7,4506.5,0.226]
[1759513494892,3.2078,4506.8,4506.5,0.226]
[1759513495093,3.2078,4506.8,4506.5,1.3269]
[1759513495387,3.2078,4507.3,4506.6,1.1009]
[1759513495590,3.2078,4507.3,4506.5,0.6897]
[1759513495591,3.2078,4507.3,4507.2,1.1009]
[1759513495791,3.2078,4507.3,4507.2,1.3269]
[1759513496189,3.2078,4507.9,4507.7,0.39903]
[1759513496391,3.2078,4507.9,4507.8,0.226]
[1759513496788,3.2078,4507.9,4507.8,1.3269]
[1759513497393,0.4692,4507.8,4507.4,0.39906]
[1759513497694,3.60682,4507.9,4507.5,0.226]
[1759513497988,0.86823,4507.8,4507.5,0.62505]
[1759513498192,0.39904,4507.7,4507.5,1.72595]
[1759513498393,0.39904,4507.7,4507.6,1.1009]
[1759513498789,0.39904,4507.7,4507.5,0.226]
[1759513498993,0.39904,4507.7,4507.5,1.3269]
[1759513499188,0.39903,4507.8,4507.6,1.49994]
[1759513499589,3.2078,4507.9,4507.7,0.39903]
[1759513499901,3.2078,4507.9,4507.8,1.3269]
[1759513500192,3.2078,4508.4,4507.9,1.1009]
[1759513500388,3.67863174,4509.5,4508.8,1.1009]
[1759513500595,0.3989,4509.2,4509.1,1.1009]
[1759513500898,0.4692,4509.1,4509.0,0.226]
[1759513501097,5.86811,4509.1,4509.0,0.226]
[1759513501393,0.39902,4507.9,4507.5,1.5646]
[1759513501600,0.39902,4507.9,4507.8,1.1009]
[1759513501893,3.3155457,4507.8,4507.7,0.226]
[1759513502091,0.39903,4507.8,4507.7,1.3512]
[1759513502286,0.39903,4507.8,4507.1,0.39908]
[1759513502287,0.39908,4507.2,4507.1,1.1252]
[1759513502492,0.4809,4507.9,4507.2,0.39907]
[1759513502689,0.4809,4507.9,4507.3,0.226]
[1759513502890,0.39906,4507.4,4507.3,1.1252]
[1759513503093,3.6887,4507.4,4507.3,0.226]
[1759513503292,4.08776,4507.4,4507.3,0.226]
[1759513503794,0.39913,4506.6,4506.5,1.5889]
[1759513503995,0.99771,4507.2,4506.6,1.1252]
[1759513504195,6.56134509,4507.4,4506.5,1.5889]
[1759513504501,0.3991,4507.0,4506.8,0.39911]
[1759513504705,2.85240991,4507.2,4507.1,1.1252]
[1759513504900,0.39905,4507.5,4507.4,1.1252]
[1759513505401,0.39905,4507.5,4507.4,4.333]
[1759513505997,0.39913,4506.6,4506.3,3.2078]
[1759513506297,0.39913,4506.6,4506.5,0.6897]
[1759513506598,0.99775,4507.1,4506.3,3.2078]
[1759513506791,0.39915,4506.4,4506.2,0.00282868]
[1759513506991,0.9749,4506.3,4506.2,0.00282868]
[1759513507198,3.87867401,4506.3,4506.2,0.00282868]
[1759513507602,0.39926,4505.2,4505.1,3.2078]
[1759513507797,0.39931,4504.6,4504.5,0.4408]
[1759513507998,0.39931,4504.6,4504.5,1.792]
[1759513508291,0.39935,4504.1,4504.0,0.59777431]
[1759513508600,0.39935,4504.1,4504.0,1.95132276]
[1759513508798,1.37425,4504.1,4504.0,0.00234845]
[1759513508995,1.37425,4504.1,4504.0,0.22834845]
[1759513509192,4.1827,4504.7,4504.0,1.79434845]
[1759513509393,3.2078,4504.7,4504.0,1.79434845]
[1759513509598,0.39933,4504.4,4504.1,1.1252]
[1759513509794,3.2078,4504.7,4504.4,1.1252]
[1759513509992,3.6071,4504.7,4504.6,1.1252]
[1759513510401,3.60711,4504.7,4504.5,0.226]
[1759513510699,3.2078,4504.7,4504.6,1.1252]
[1759513511607,3.2078,4505.5,4504.6,1.1252]
[1759513511905,0.39935,4504.2,4504.0,4.77614845]
[1759513512099,0.39935,4504.2,4504.1,0.226]
[1759513512407,0.9749,4504.9,4504.1,1.3512]
[1759513512613,0.9749,4504.1,4504.0,0.00234845]
[1759513512906,0.9749,4504.1,4504.0,0.22834845]
[1759513513205,0.9749,4504.1,4503.0,1.1252]
[1759513513206,0.39943,4503.2,4503.0,1.1252]
[1759513513509,0.39943,4503.2,4503.1,0.226]
[1759513513807,0.39943,4503.2,4503.1,1.3512]
[1759513514196,0.39943,4503.2,4503.1,1.35344436]
[1759513514798,0.39943,4503.2,4503.1,0.22824436]
[1759513514799,4.58213,4503.2,4503.1,0.22824436]
[1759513515000,4.22434786,4503.2,4503.1,0.22824436]
[1759513515206,4.1827,4503.7,4503.1,1.35344436]
[1759513515606,0.39943,4503.3,4503.2,1.1252]
[1759513516007,0.9749,4503.2,4503.1,4.36e-06]
[1759513516207,3.2078,4503.2,4503.1,0.22600436]
[1759513516408,2.91001869,4503.2,4503.1,0.22600436]
[1759513516610,3.2078,4503.8,4503.2,1.1252]
[1759513516804,0.39943,4503.3,4503.2,1.1252]
[1759513517002,0.39943,4503.3,4503.1,0.22600436]
[1759513517308,0.39957,4501.7,4501.5,3.6486]
[1759513517703,0.39957,4501.7,4501.6,1.1252]
[1759513517900,0.39957,4501.7,4501.0,3.6486]
[1759513517901,0.7489,4501.9,4501.0,3.6486]
[1759513518101,0.7489,4501.9,4501.1,1.3512]
[1759513518102,0.39961,4501.3,4501.1,1.3512]
[1759513518301,0.39961,4501.3,4501.2,1.3512]
[1759513518704,0.39961,4501.3,4501.2,1.1252]
[1759513518905,0.75124755,4501.9,4501.2,0.226]
[1759513518906,0.39957,4501.7,4501.2,0.226]
[1759513519110,0.40189755,4501.9,4501.6,1.1252]
[1759513519314,2.8464705,4501.6,4501.5,0.226]
[1759513519507,0.7489,4501.6,4501.5,0.226]
[1759513519814,3.60737,4501.7,4501.6,1.1252]
[1759513520109,0.00234755,4501.9,4501.6,1.1252]
[1759513520320,0.00234755,4501.9,4501.6,0.39957]
[1759513520616,0.00234755,4501.9,4501.8,1.1252]
[1759513521714,0.00234755,4501.9,4501.8,1.3512]
[1759513522010,0.00234755,4501.9,4501.8,1.75076]
[1759513522209,0.00234755,4501.9,4501.8,1.3512]
[1759513524611,0.00234755,4501.9,4501.8,6.3512]
[1759513524807,0.00234755,4501.9,4501.8,6.1252]
[1759513525008,0.00234755,4501.9,4501.8,6.75076]
[1759513525513,0.00234755,4501.9,4501.8,6.1252]
[1759513525715,0.00234755,4501.9,4501.8,1.3512]
[1759513527111,0.40189755,4501.9,4501.8,1.1252]
[1759513527414,0.39962,4501.1,4500.8,34.641]
[1759513527614,0.39962,4501.1,4501.0,0.00243221]
[1759513527914,0.39962,4501.1,4501.0,0.22843221]
[1759513528413,0.39962,4501.1,4500.5,1.1124]
[1759513528414,0.39966,4500.6,4500.5,1.1124]
[1759513528620,0.39966,4500.6,4500.5,1.3384]
[1759513528810,0.39966,4500.6,4500.5,1.1124]
[1759513529007,3.60746,4500.7,4500.6,1.1124]
[1759513529511,3.60746,4500.7,4500.6,1.11495564]
[1759513530806,3.2078,4501.2,4500.6,0.00255564]
[1759513531019,2.214,4503.5,4501.6,1.1124]
[1759513531020,0.39956,4501.8,4501.6,1.1124]
[1759513531221,2.93140281,4501.8,4501.7,1.1124]
[1759513531419,0.39957,4501.7,4501.6,1.3384]
[1759513532213,0.7168,4501.7,4501.0,1.532]
[1759513532412,0.3996,4501.3,4501.1,0.226]
[1759513532614,3.9246,4501.7,4501.0,0.4339]
[1759513532615,0.39962,4501.1,4501.0,0.4339]
[1759513532820,0.39962,4501.1,4501.0,1.758]
[1759513533118,0.3996,4501.3,4501.1,1.0981]
[1759513533326,0.39962,4501.1,4501.0,1.758]
[1759513534018,0.39957,4501.6,4501.0,1.758]
[1759513534217,3.2078,4501.7,4501.6,1.0981]
[1759513534415,3.2078,4501.7,4501.6,1.3241]
[1759513535414,0.7168,4502.6,4501.7,0.39957]
[1759513535609,0.39953,4502.1,4501.8,1.0981]
[1759513535914,0.39954,4502.0,4501.8,1.0981]
[1759513536109,0.39953,4502.2,4501.8,1.0981]
[1759513536316,0.39954,4502.0,4501.8,1.0981]
[1759513536514,3.2078,4502.3,4501.8,1.0981]
[1759513536727,3.2078,4502.3,4501.5,0.4511]
[1759513536728,2.93431667,4501.9,4501.5,0.226]
[1759513536918,2.93431667,4501.9,4501.2,1.0981]
[1759513536919,0.3996,4501.3,4501.2,1.0981]
[1759513537118,0.3996,4501.3,4501.2,1.3241]
[1759513537616,0.39958,4501.6,4501.4,1.0981]
[1759513537825,0.39959,4501.5,4501.3,1.0981]
[1759513538118,0.39959,4501.4,4501.3,1.0981]
[1759513538314,0.39959,4501.4,4501.2,0.226]
[1759513538515,0.39959,4501.4,4501.3,1.0981]
[1759513538823,0.39958,4501.5,4501.3,1.0981]
[1759513539014,0.39958,4501.5,4501.4,0.226]
[1759513539214,0.39958,4501.5,4501.4,1.3241]
[1759513539820,0.39957,4501.7,4501.6,1.0981]
[1759513540315,3.34649471,4501.7,4501.6,1.0981]
[1759513540518,0.99899,4501.4,4500.6,0.00255564]
[1759513540718,0.39964,4500.8,4500.7,1.0981]
[1759513540915,2.94692471,4501.3,4500.9,0.39963]
[1759513541116,0.7168,4501.8,4501.1,1.0981]
[1759513541117,0.39961,4501.2,4501.1,1.0981]
[1759513541320,0.39961,4501.2,4501.1,1.3241]
[1759513541923,0.39961,4501.2,4501.1,1.0981]
[1759513542112,0.7168,4501.8,4501.1,1.3241]
[1759513542312,0.7168,4501.8,4501.4,0.39959]
[1759513542514,0.7168,4501.8,4501.1,0.226]
[1759513542515,2.95299571,4501.5,4501.1,0.226]
[1759513542713,0.39959,4501.4,4501.2,1.0981]
[1759513542911,2.95299571,4501.7,4501.2,1.0981]
[1759513542912,0.39961,4501.3,4501.2,1.0981]
[1759513543321,2.8435667,4501.5,4501.2,1.0981]
[1759513543525,3.2078,4502.0,4501.7,0.39956]
[1759513543826,0.39954,4502.0,4501.8,1.3241]
[1759513544018,0.39954,4502.0,4501.8,1.0981]
[1759513544424,3.2078,4502.0,4501.8,0.226]
[1759513544619,3.9246,4502.5,4501.8,1.3241]
[1759513544822,3.2078,4502.5,4501.8,1.3241]
[1759513545022,3.2078,4502.4,4501.8,1.0981]
[1759513545226,3.2078,4502.4,4501.8,1.3241]
[1759513545427,0.39952,4502.2,4501.8,1.3241]
[1759513545623,0.39954,4502.0,4501.8,1.3241]
[1759513545922,0.39954,4502.0,4500.8,1.18827612]
[1759513545923,0.39962,4501.1,4500.8,1.18827612]
[1759513546226,0.39964,4500.8,4500.6,1.19083176]
[1759513546426,0.39964,4500.8,4500.7,1.3241]
[1759513546626,6.04489692,4501.1,4501.0,0.4511]
[1759513546826,2.83709692,4501.1,4501.0,1.5492]
[1759513547022,0.39964,4500.9,4500.8,1.3241]
[1759513547221,0.7168,4501.2,4500.6,0.00255564]
[1759513547521,0.39965,4500.7,4500.6,0.22855564]
[1759513547917,0.39965,4500.7,4500.6,1.32665564]
[1759513548122,3.2078,4500.9,4500.6,1.32665564]
[1759513548324,3.2078,4500.9,4500.7,1.0981]
[1759513548630,2.88366726,4500.8,4500.7,1.0981]
[1759513548815,0.39961,4501.3,4500.9,0.39963]
[1759513549019,3.4338,4501.7,4500.6,0.22855564]
[1759513549020,0.39962,4501.1,4501.0,1.7752]
[1759513549420,0.3996,4501.3,4501.1,1.0981]
[1759513549725,3.2388299,4501.2,4501.1,1.0981]
[1759513550230,3.60742,4501.2,4501.1,1.0981]
[1759513550630,0.226,4501.7,4501.1,1.0981]
[1759513550826,0.39962,4501.1,4501.0,1.7752]
[1759513551029,0.39962,4501.1,4501.0,1.3241]
[1759513551228,0.39962,4501.1,4501.0,1.7752]
[1759513551820,0.39962,4501.1,4501.0,1.5492]
[1759513552024,0.39962,4501.1,4501.0,1.7752]
[1759513552423,3.2078,4501.4,4501.0,1.7752]
[1759513552634,0.226,4501.7,4501.1,1.0981]
[1759513552830,0.39962,4501.1,4501.0,0.6771]
[1759513553025,2.90476817,4501.4,4501.0,0.6771]
[1759513553331,3.2078,4501.4,4501.0,1.07673]
[1759513553629,0.39957,4501.7,4501.5,0.85068]
[1759513553828,0.39957,4501.7,4501.6,1.3241]
[1759513554329,2.83733246,4501.7,4501.6,1.3241]
[1759513554526,0.39956,4501.8,4501.7,1.0981]
[1759513554827,3.21014755,4501.9,4501.7,1.49766]
[1759513555125,0.00234755,4501.9,4501.8,1.0981]
[1759513555526,0.39948,4502.7,4502.6,1.0981]
[1759513555727,0.39948,4502.7,4502.6,1.3241]
[1759513555928,2.83307586,4503.0,4502.6,1.72358]
[1759513556135,0.3994,4503.6,4503.5,1.5492]
[1759513556333,3.6072,4503.6,4503.5,1.0981]
[1759513556532,0.39944,4503.1,4503.0,1.5492]
[1759513556828,0.39944,4503.1,4503.0,1.7752]
[1759513557033,6.05751809,4503.6,4503.5,1.5492]
[1759513557329,0.00158797,4503.6,4503.5,1.5492]
[1759513558032,0.00158797,4503.6,4503.5,6.5492]
[1759513558334,0.40098797,4503.6,4503.5,1.7752]
[1759513559031,0.00158797,4503.6,4503.5,1.7752]
[1759513560230,0.00158797,4503.6,4503.5,1.5492]
[1759513560435,0.00158797,4503.6,4503.5,1.7752]
[1759513560733,3.2078,4504.9,4504.6,1.0981]
[1759513560938,3.2078,4504.9,4504.7,1.0981]
[1759513561431,3.2078,4504.9,4504.6,0.226]
[1759513561432,3.2078,4505.5,4505.1,1.0981]
[1759513561737,6.5552908,4505.5,4505.3,1.0981]
[1759513561942,0.39924,4505.4,4505.3,1.0981]
[1759513562236,0.39925,4505.3,4505.2,1.3057]
[1759513562736,0.39925,4505.3,4505.2,1.0797]
[1759513562737,2.8557137,4505.3,4505.2,1.0797]
[1759513562933,0.39925,4505.3,4505.2,1.0797]
[1759513563733,0.39925,4505.3,4505.2,1.3057]
[1759513563926,3.21043519,4505.5,4505.2,0.226]
[1759513564327,3.21043519,4505.5,4505.1,0.00168081]
[1759513564636,3.21043519,4505.5,4505.4,1.0797]
[1759513564825,3.21043519,4505.5,4505.4,1.3057]
[1759513565029,0.39925,4505.2,4505.1,0.00168081]
[1759513565230,0.39925,4505.2,4505.1,1.30738081]
[1759513565636,3.21043519,4505.5,4505.2,1.0797]
[1759513565834,0.39924,4505.4,4505.2,1.0797]
[1759513566033,3.21043519,4505.5,4505.1,0.22768081]
[1759513566237,3.21043519,4505.5,4505.2,1.0797]
[1759513566431,0.00263519,4505.5,4505.2,1.0797]
[1759513566632,0.39924,4505.4,4505.3,1.3057]
[1759513566837,6.1511069,4505.4,4505.1,0.00168081]
[1759513567146,1.08065,4505.2,4505.1,0.00168081]
[1759513567438,4.01017735,4505.2,4505.1,0.00168081]
[1759513567741,0.39935,4504.1,4504.0,0.4511]
[1759513568036,0.39935,4504.1,4504.0,1.5308]
[1759513568239,3.2078,4504.3,4503.6,1.0797]
[1759513568432,3.60714,4504.3,4504.1,1.0797]
[1759513568633,3.28627599,4504.2,4504.1,1.0797]
[1759513568829,3.28627599,4504.2,4504.1,1.08172834]
[1759513569238,3.4338,4504.9,4504.1,1.08172834]
[1759513569440,3.2078,4504.9,4504.3,0.39933]
[1759513569637,0.39931,4504.6,4504.5,1.54]
[1759513569837,1.08071,4504.6,4504.5,0.226]
[1759513570132,0.6814,4504.2,4504.1,0.00202834]
[1759513570339,3.60713,4504.3,4504.1,1.08172834]
[1759513570539,4.28853,4504.3,4504.1,0.00202834]
[1759513570736,2.928164,4504.2,4504.1,1.08172834]
[1759513570937,3.2078,4504.7,4504.1,1.48107834]
[1759513571137,3.2078,4504.7,4504.2,1.0797]
[1759513571333,2.87708163,4505.0,4504.6,1.0797]
[1759513571540,0.39929,4504.8,4504.7,1.3057]
[1759513571943,0.39929,4504.8,4504.7,1.0797]
[1759513572244,0.39931,4504.6,4504.5,1.766]
[1759513572436,3.60708,4504.9,4504.5,1.766]
[1759513572644,4.2059,4505.4,4504.6,1.0797]
[1759513572844,0.3993,4504.8,4504.6,1.0797]
[1759513573040,0.39931,4504.6,4504.5,0.6863]
[1759513573240,0.39931,4504.6,4504.1,1.08172834]
[1759513573241,0.6814,4504.4,4504.1,1.08172834]
[1759513573446,3.60713,4504.3,4504.1,1.08172834]
[1759513573745,2.8484784,4504.3,4504.2,1.0797]
[1759513573951,0.39933,4504.3,4504.2,1.0797]
[1759513574445,0.3993,4504.7,4504.5,0.4603]
[1759513574642,0.3993,4504.7,4504.6,1.0797]
[1759513574844,0.39931,4504.6,4504.5,0.6863]
[1759513575348,0.39931,4504.6,4504.5,1.766]
[1759513575851,0.99821,4505.0,4504.5,1.766]
[1759513575852,0.39926,4505.1,4505.0,1.54]
[1759513576148,2.9250786,4505.0,4504.6,1.0797]
[1759513576848,0.39931,4504.6,4504.5,1.54]
[1759513577051,2.9250786,4505.0,4504.9,1.0797]
[1759513577248,0.39926,4505.2,4505.1,1.0797]
[1759513577749,0.39931,4504.6,4504.5,0.4603]
[1759513577950,0.39931,4504.6,4504.1,3.20982834]
[1759513577951,0.9983,4504.6,4504.1,3.20982834]
[1759513578151,0.39934,4504.3,4504.1,3.20982834]
[1759513578346,3.60714,4504.3,4504.2,1.0797]
[1759513578555,3.60714,4504.3,4504.1,1.30772834]
[1759513578761,0.3994,4503.6,4503.5,0.4511]
[1759513578949,0.39949,4502.6,4502.5,0.4603]
[1759513579153,0.39949,4502.6,4502.5,0.6863]
[1759513579450,0.39947,4502.8,4502.6,0.39948]
[1759513579650,0.39948,4502.7,4502.5,0.6863]
[1759513579846,0.39948,4502.7,4502.6,0.00205581]
[1759513580855,4.33535921,4502.7,4502.6,0.00205581]
[1759513581355,4.33535921,4502.7,4501.5,0.4603]
[1759513581356,0.39957,4501.7,4501.5,0.4603]
[1759513581559,0.39957,4501.7,4501.6,0.226]
[1759513582057,0.3996,4501.3,4501.2,4.2875]
[1759513582246,0.00158126,4501.3,4501.2,3.43594797]
[1759513582853,0.00158126,4501.3,4501.2,4.51564797]
[1759513583154,0.00158126,4501.3,4501.2,1.30784797]
[1759513583656,0.40118126,4501.3,4501.2,1.30784797]
[1759513583849,0.40118126,4501.3,4501.2,0.00214797]
[1759513584160,7.5398071,4501.3,4501.2,0.00214797]
[1759513585261,7.5398071,4501.3,4500.3,0.175]
[1759513585262,11.0433071,4501.3,4500.3,0.175]
[1759513585455,0.39965,4500.8,4500.6,1.0797]
[1759513585754,3.20938126,4501.3,4500.7,1.0797]
[1759513585956,0.39963,4501.0,4500.6,1.47936]
[1759513586156,0.39966,4500.7,4500.6,1.08176892]
[1759513586359,0.39964,4500.9,4500.7,1.0797]
[1759513586554,4.30628126,4501.3,4500.6,1.08176892]
[1759513586555,0.39965,4500.8,4500.6,1.08176892]
[1759513586762,0.39965,4500.8,4500.7,1.1338]
[1759513586956,2.94631387,4501.2,4500.6,0.00206892]
[1759513587258,0.39965,4500.8,4500.7,1.1338]
[1759513587462,1.1021,4500.7,4500.6,0.00206892]
[1759513587758,8.94464643,4500.7,4500.6,0.00206892]
[1759513587963,8.94464643,4500.7,4499.5,3.6681]
[1759513587964,0.39975,4499.6,4499.5,3.6681]
[1759513588153,0.39979,4499.2,4499.0,3.6681]
[1759513588353,0.39979,4499.2,4499.1,0.226]
[1759513588560,1.50194,4498.6,4498.5,3.2078]
[1759513588957,1.50194,4498.6,4498.5,3.20945071]
[1759513589157,1.1021,4498.6,4498.5,3.20945071]
[1759513589352,0.39984,4498.7,4498.5,3.20945071]
[1759513589758,1.50194,4498.7,4498.5,3.20945071]
[1759513590061,4.00100745,4498.6,4498.5,0.00165071]
[1759513590452,4.22700745,4498.6,4498.5,0.00165071]
[1759513590659,4.22700745,4498.6,4497.9,0.02223284]
[1759513590660,1.9563,4498.0,4497.9,0.02223284]
[1759513590858,5.1641,4498.0,4497.9,0.02223284]
[1759513591055,8.04434647,4498.0,4497.9,0.02223284]
[1759513591260,7.64444647,4498.0,4497.9,0.02223284]
[1759513591663,7.64718486,4498.0,4497.9,0.02461967]
[1759513592264,0.00273839,4498.0,4497.9,6.07421967]
[1759513592853,0.00273839,4498.0,4497.9,6.30021967]
[1759513593054,0.00273839,4498.0,4497.9,1.07421967]
[1759513593257,0.00273839,4498.0,4497.9,1.30021967]
[1759513594166,1.05173839,4498.0,4497.9,0.02461967]
[1759513594359,3.98295017,4498.0,4497.9,0.02461967]
[1759513595861,3.98295017,4498.0,4497.9,1.07421967]
[1759513595862,0.00273839,4498.0,4497.9,1.07421967]
[1759513596161,0.00273839,4498.0,4497.9,1.30021967]
[1759513596862,3.2078,4499.0,4498.6,1.0496]
[1759513597063,4.20733,4499.0,4498.6,1.0496]
[1759513597271,1.89299,4498.0,4497.9,9.67e-06]
[1759513597568,7.93155012,4498.0,4497.9,9.67e-06]
[1759513597965,0.39997,4497.1,4496.9,1.0496]
[1759513598160,4.2568,4497.5,4496.8,1.0496]
[1759513598560,0.40001,4496.7,4496.5,3.6584]
[1759513598758,0.40001,4496.7,4495.9,0.40008]
[1759513598759,0.40001,4496.7,4496.6,1.2756]
[1759513598964,1.4513473,4496.7,4496.6,0.22788286]
[1759513599167,4.33158836,4496.7,4496.6,0.22788286]
[1759513599468,4.33158836,4496.7,4496.6,0.00188286]
[1759513599658,4.33158836,4496.7,4496.6,0.01417889]
[1759513600462,0.40011,4495.7,4495.5,3.2078]
[1759513600664,0.40008,4495.9,4495.5,3.2078]
[1759513600870,1.049,4496.1,4495.5,3.2078]
[1759513601061,3.96748613,4496.1,4495.5,3.2078]
[1759513601262,2.91848613,4496.1,4495.9,0.40008]
[1759513601465,0.0023373,4496.7,4496.0,3.8844]
[1759513601662,0.0023373,4496.7,4496.6,1.0496]
[1759513601863,0.0023373,4496.7,4496.6,1.2766]
[1759513602063,0.0023373,4496.7,4496.0,3.6584]
[1759513602268,0.0023373,4496.7,4496.1,1.2766]
[1759513602466,2.94422454,4496.6,4496.1,1.0496]
[1759513602765,0.40004,4496.4,4496.3,1.0496]
[1759513603063,3.99322454,4496.6,4496.0,3.2078]
[1759513603264,0.40007,4496.0,4495.9,0.00244164]
[1759513603461,1.89317,4496.0,4495.9,0.00244164]
[1759513603661,1.44913,4495.4,4495.3,0.01666152]
[1759513603864,0.40016,4495.1,4494.5,1.0496]
[1759513604062,3.96517682,4495.4,4494.4,1.0496]
[1759513604265,0.4441,4495.5,4494.1,2.15626]
[1759513604266,2.82806517,4495.0,4494.1,2.15626]
[1759513604472,0.4215,4493.0,4491.4,4.39607612]
[1759513604676,0.4215,4493.0,4491.6,1.0496]
[1759513604677,3.2078,4492.7,4491.6,1.0496]
[1759513604859,3.2078,4492.7,4492.1,1.0496]
[1759513605165,2.87292422,4492.6,4492.1,1.2766]
[1759513605358,3.2078,4492.2,4491.5,1.5002]
[1759513605558,1.049,4492.1,4491.3,3.2078]
[1759513605772,2.87292422,4492.1,4491.6,1.0496]
[1759513605972,0.40037,4492.7,4492.0,1.5002]
[1759513606267,2.9285768,4492.1,4491.5,0.4506]
[1759513606667,3.2078,4491.8,4491.4,1.0496]